bitfinex/quotes_BTCUSD_20240731
["timestamp","ask_amount","ask_price","bid_price","bid_amount"]
[1722411759127,0.00283,66427.0,66426.0,0.56948233]
[1722411759523,0.00283,66427.0,66426.0,0.87056833]
[1722411759722,0.00283,66427.0,66426.0,0.56948233]
[1722411760780,0.00283,66427.0,66426.0,0.109]
[1722411760983,0.00283,66427.0,66426.0,0.159543]
[1722411761174,0.00283,66427.0,66426.0,0.460629]
[1722411761375,0.00283,66427.0,66426.0,0.761715]
[1722411761535,0.00283,66427.0,66426.0,0.460629]
[1722411761916,0.00283,66427.0,66426.0,0.691729]
[1722411762117,0.00283,66427.0,66426.0,0.992815]
[1722411767761,0.00283,66427.0,66426.0,0.906415]
[1722411770822,0.04783833,66427.0,66426.0,0.906415]
[1722411771028,0.00283,66427.0,66426.0,0.906415]
[1722411771149,0.04787067,66427.0,66426.0,0.906415]
[1722411771498,0.00283,66427.0,66426.0,0.906415]
[1722411772206,0.00183119,66427.0,66426.0,0.906415]
[1722411772596,0.0693922,66427.0,66426.0,0.906415]
[1722411773537,0.00183119,66427.0,66426.0,0.906415]
[1722411774712,0.09201035,66427.0,66426.0,0.906415]
[1722411775271,0.00183119,66427.0,66426.0,0.906415]
[1722411775421,0.00183119,66427.0,66426.0,0.842915]
[1722411775641,0.00183119,66427.0,66426.0,0.541829]
[1722411776003,0.00183119,66427.0,66426.0,0.761715]
[1722411776370,0.00183119,66427.0,66426.0,0.460629]
[1722411776579,0.03969629,66427.0,66426.0,0.460629]
[1722411776787,0.03969629,66427.0,66426.0,0.761715]
[1722411777556,0.03969629,66427.0,66426.0,0.460629]
[1722411777728,0.03984683,66427.0,66426.0,0.460629]
[1722411777934,0.10524683,66427.0,66426.0,0.009]
[1722411778166,0.24071331,66427.0,66426.0,0.009]
[1722411778372,0.10524683,66427.0,66426.0,0.009]
[1722411779083,0.03984683,66427.0,66426.0,0.009]
[1722411779839,0.03984683,66427.0,66426.0,0.159543]
[1722411780460,0.03984683,66427.0,66426.0,0.009]
[1722411781073,0.03984683,66427.0,66426.0,0.159543]
[1722411781277,0.04003267,66427.0,66426.0,0.159543]
[1722411781915,0.04003267,66427.0,66426.0,0.460629]
[1722411784005,0.04003267,66427.0,66426.0,0.159543]
[1722411784201,0.04003267,66427.0,66426.0,0.460629]
[1722411784619,0.04011745,66427.0,66426.0,0.460629]
[1722411787911,0.03998368,66427.0,66426.0,0.460629]
[1722411791437,0.03989652,66427.0,66426.0,0.460629]
[1722411792824,0.03989652,66427.0,66426.0,0.539829]
[1722411793023,0.03989652,66427.0,66426.0,0.993415]
[1722411793425,0.03989652,66427.0,66426.0,1.003415]
[1722411793689,0.03989652,66427.0,66426.0,1.627587]
[1722411793690,0.09214001,66427.0,66426.0,1.627587]
[1722411793871,0.09214001,66427.0,66426.0,1.705587]
[1722411794119,0.0695606,66427.0,66426.0,1.727587]
[1722411794562,0.00183119,66427.0,66426.0,1.727587]
[1722411794786,0.06956319,66427.0,66426.0,1.705587]
[1722411795137,0.06956319,66427.0,66426.0,1.725587]
[1722411795990,0.06956319,66427.0,66426.0,1.727587]
[1722411797497,0.06956319,66427.0,66426.0,1.705587]
[1722411797937,0.00183119,66427.0,66426.0,1.705587]
[1722411798137,0.06957011,66427.0,66426.0,1.705587]
[1722411798553,0.06957011,66427.0,66426.0,1.404501]
[1722411798681,0.00183119,66427.0,66426.0,1.394501]
[1722411799097,0.11472939,66427.0,66426.0,1.394501]
[1722411799500,0.11472939,66427.0,66426.0,1.404501]
[1722411801307,0.11475117,66427.0,66426.0,1.404501]
[1722411802488,0.00183119,66427.0,66426.0,1.394501]
[1722411802765,0.00183119,66427.0,66426.0,0.560629]
[1722411802980,0.13733517,66427.0,66426.0,0.560629]
[1722411803192,0.00183119,66427.0,66426.0,0.560629]
[1722411804849,0.00183119,66427.0,66426.0,0.927315]
[1722411805051,0.00183119,66427.0,66426.0,0.626229]
[1722411805874,0.00183119,66427.0,66426.0,0.627142]
[1722411806321,0.00266119,66427.0,66426.0,0.928228]
[1722411806493,0.00266119,66427.0,66426.0,0.627142]
[1722411806939,0.00266119,66427.0,66426.0,0.928228]
[1722411809640,0.00266119,66427.0,66426.0,1.005028]
[1722411813494,0.13819247,66427.0,66426.0,1.005028]
[1722411813662,0.00266119,66427.0,66426.0,1.005028]
[1722411814113,0.00266119,66427.0,66426.0,1.306114]
[1722411814293,0.00266119,66427.0,66426.0,1.005028]
[1722411817912,0.00266119,66427.0,66426.0,1.091428]
[1722411818117,0.00266119,66427.0,66426.0,1.392514]
[1722411818368,0.00266119,66427.0,66426.0,1.091428]
[1722411818511,0.00266119,66427.0,66426.0,1.392514]
[1722411824964,0.00266119,66427.0,66426.0,1.306114]
[1722411827139,0.00266119,66427.0,66426.0,1.005028]
[1722411827349,0.00266119,66427.0,66426.0,0.939428]
[1722411828578,0.17461827,66427.0,66426.0,0.939428]
[1722411829748,0.17461827,66427.0,66426.0,1.240514]
[1722411829911,0.00266119,66427.0,66426.0,1.250514]
[1722411830112,0.00266119,66427.0,66426.0,1.317014]
[1722411830939,0.00266119,66427.0,66426.0,1.319014]
[1722411831142,0.00266119,66427.0,66426.0,1.307014]
[1722411831380,0.00266119,66427.0,66426.0,1.317014]
[1722411832023,0.00266119,66427.0,66426.0,1.319014]
[1722411833667,0.00266119,66427.0,66426.0,1.307014]
[1722411834195,0.00266119,66427.0,66426.0,1.317014]
[1722411835165,0.00266119,66427.0,66426.0,1.319014]
[1722411838377,0.00266119,66427.0,66426.0,1.79073304]
[1722411838575,0.11567908,66427.0,66426.0,1.79073304]
[1722411838925,0.00266119,66427.0,66426.0,1.91585451]
[1722411839131,0.00266119,66427.0,66426.0,1.79073304]
[1722411839734,0.00166119,66427.0,66426.0,1.78473304]
[1722411839938,0.00266119,66427.0,66426.0,1.79073304]
[1722411840337,0.00183,66427.0,66426.0,1.78773304]
[1722411840511,0.00283,66427.0,66426.0,1.79873304]
[1722411840727,0.09323568,66427.0,66426.0,1.79873304]
[1722411840931,0.09223568,66427.0,66426.0,1.78773304]
[1722411841336,0.09323568,66427.0,66426.0,1.80173304]
[1722411841530,0.09323155,66427.0,66426.0,1.80173304]
[1722411842633,0.00283,66427.0,66426.0,1.80173304]
[1722411842843,0.07062782,66427.0,66426.0,1.92685307]
[1722411843306,0.04802264,66427.0,66426.0,1.92685307]
[1722411843715,0.04802276,66427.0,66426.0,1.92685307]
[1722411844763,0.00283,66427.0,66426.0,1.92685307]
[1722411844982,0.04801789,66427.0,66426.0,1.92684889]
[1722411845177,0.00283,66427.0,66426.0,1.92684889]
[1722411849315,0.00283,66427.0,66426.0,1.80173304]
[1722411851776,0.00283,66427.0,66426.0,1.92684633]
[1722411854362,0.00283,66427.0,66426.0,1.77973304]
[1722411855122,0.00283,66427.0,66426.0,1.174714]
[1722411855123,0.04797811,66427.0,66426.0,1.174714]
[1722411855339,0.06463,66427.0,66426.0,1.174714]
[1722411855542,0.17750028,66427.0,66426.0,1.174714]
[1722411855870,0.06463,66427.0,66426.0,1.174714]
[1722411856891,0.17751644,66427.0,66426.0,1.174714]
[1722411858138,0.06463,66427.0,66426.0,1.174714]
[1722411858350,0.17751932,66427.0,66426.0,1.174714]
[1722411859191,0.06463,66427.0,66426.0,1.174714]
[1722411859636,0.17752492,66427.0,66426.0,1.174714]
[1722411859864,0.06463,66427.0,66426.0,1.261114]
[1722411860822,0.00283,66427.0,66426.0,1.261114]
[1722411864261,0.11573177,66427.0,66426.0,1.400514]
[1722411864701,0.11573301,66427.0,66426.0,1.174714]
[1722411864966,0.11573301,66427.0,66426.0,1.261114]
[1722411868415,0.11573661,66427.0,66426.0,1.261114]
[1722411868796,0.00283,66427.0,66426.0,1.261114]
[1722411873310,0.00283,66427.0,66426.0,1.401614]
[1722411874895,0.00283,66427.0,66426.0,1.338914]
[1722411878460,0.00283,66427.0,66426.0,1.348914]
[1722411878461,0.09316833,66427.0,66426.0,1.348914]
[1722411879202,0.09316833,66427.0,66426.0,1.350914]
[1722411880490,0.093172,66427.0,66426.0,1.350914]
[1722411881572,0.00283,66427.0,66426.0,1.350914]
[1722411881787,0.09317378,66427.0,66426.0,1.350914]
[1722411883302,0.00283,66427.0,66426.0,1.338914]
[1722411883499,0.00283,66427.0,66426.0,1.348914]
[1722411883731,0.00283,66427.0,66426.0,1.350914]
[1722411885200,0.00283,66427.0,66426.0,1.338914]
[1722411888545,0.11576824,66427.0,66426.0,1.338914]
[1722411890922,0.11576824,66427.0,66426.0,1.261114]
[1722411891144,0.00283,66427.0,66426.0,1.261114]
[1722411891350,0.00283,66427.0,66426.0,1.174714]
[1722411891556,0.00283,66427.0,66426.0,0.873628]
[1722411891784,0.04039372,66427.0,66426.0,0.873628]
[1722411892835,0.17594251,66427.0,66426.0,0.873628]
[1722411894076,0.04039372,66427.0,66426.0,0.873628]
[1722411894454,0.17594251,66427.0,66426.0,0.873628]
[1722411895146,0.17626505,66427.0,66426.0,0.873628]
[1722411896297,0.13838859,66427.0,66426.0,0.873628]
[1722411896726,0.00283,66427.0,66426.0,0.873628]
[1722411897131,0.13838859,66427.0,66426.0,0.873628]
[1722411898462,0.00283,66427.0,66426.0,0.873628]
[1722411898629,0.13843001,66427.0,66426.0,0.873628]
[1722411899289,0.00283,66427.0,66426.0,0.873628]
[1722411900289,0.00283,66427.0,66426.0,0.956728]
[1722411900731,0.00283,66427.0,66426.0,1.322414]
[1722411901318,0.00283,66427.0,66426.0,1.332414]
[1722411901788,0.00283,66427.0,66426.0,1.322414]
[1722411904746,0.00283,66427.0,66426.0,1.344214]
[1722411911029,0.13847713,66427.0,66426.0,0.873628]
[1722411911173,0.00283,66427.0,66426.0,0.960028]
[1722411912563,0.13848256,66427.0,66426.0,0.960028]
[1722411913175,0.00283,66427.0,66426.0,0.960028]
[1722411913303,0.13848256,66427.0,66426.0,0.960028]
[1722411914669,0.00283,66427.0,66426.0,0.960028]
[1722411919629,0.00283,66427.0,66426.0,1.399214]
[1722411920455,0.00283,66427.0,66426.0,1.409214]
[1722411920909,0.11586548,66427.0,66426.0,1.409214]
[1722411921107,0.11586548,66427.0,66426.0,1.429214]
[1722411921543,0.11585983,66427.0,66426.0,1.409214]
[1722411922378,0.00283,66427.0,66426.0,1.409214]
[1722411929391,0.11585659,66427.0,66426.0,1.429214]
[1722411929808,0.00283,66427.0,66426.0,1.88093304]
[1722411930013,0.00283,66427.0,66426.0,2.00605198]
[1722411930216,0.0706362,66427.0,66426.0,2.00605198]
[1722411930442,0.13563225,66436.0,66426.0,2.00605198]
[1722411930443,0.0678062,66432.0,66431.0,0.333064]
[1722411930655,0.11302659,66436.0,66434.0,0.33305]
[1722411930656,0.04519946,66435.0,66434.0,0.33305]
[1722411930856,0.0678062,66436.0,66435.0,0.174]
[1722411931085,0.00083,66445.0,66444.0,0.752512]
[1722411931954,0.07617716,66445.0,66444.0,0.451507]
[1722411932168,0.14237716,66445.0,66440.0,0.301019]
[1722411932387,0.13559482,66442.0,66439.0,0.150513]
[1722411932597,0.0662,66443.0,66434.0,0.852625]
[1722411932598,0.07534716,66435.0,66434.0,0.852625]
[1722411933040,0.0619,66441.0,66437.0,0.301037]
[1722411933279,0.0619,66441.0,66434.0,0.40105]
[1722411933280,0.16680586,66440.0,66434.0,0.1]
[1722411933510,0.16680586,66440.0,66435.0,0.250521]
[1722411933511,0.13553468,66436.0,66435.0,0.250521]
[1722411933740,0.17384054,66436.0,66435.0,0.551567]
[1722411934795,0.1285,66440.0,66435.0,0.414046]
[1722411934998,0.1285,66440.0,66439.0,0.150514]
[1722411935116,0.1670569,66440.0,66439.0,0.150514]
[1722411937223,0.1670569,66440.0,66439.0,0.007]
[1722411937524,0.55460094,66440.0,66439.0,0.014]
[1722411937806,1.48066994,66440.0,66439.0,0.014]
[1722411938015,1.17964694,66440.0,66439.0,0.014]
[1722411938221,1.17895073,66440.0,66439.0,0.014]
[1722411938433,1.09255073,66440.0,66439.0,0.007]
[1722411938661,0.76852773,66440.0,66439.0,0.007]
[1722411938874,0.61801673,66440.0,66433.0,0.150526]
[1722411939135,0.30300275,66438.0,66433.0,0.150526]
[1722411939348,0.03786069,66437.0,66434.0,0.150524]
[1722411939566,0.03786069,66436.0,66430.0,0.0815]
[1722411939784,0.03786069,66435.0,66432.0,0.150528]
[1722411939997,0.03786069,66434.0,66432.0,0.150528]
[1722411940216,0.03786069,66433.0,66432.0,0.150528]
[1722411941494,0.150516,66438.0,66432.0,0.150528]
[1722411941704,0.15249379,66435.0,66433.0,0.150527]
[1722411941916,0.03726082,66434.0,66433.0,0.150527]
[1722411943217,0.03726082,66434.0,66433.0,0.152527]
[1722411944495,0.03726082,66434.0,66433.0,0.154527]
[1722411945049,0.03729077,66434.0,66433.0,0.154527]
[1722411945284,0.18978968,66434.0,66433.0,0.154527]
[1722411946543,0.18978968,66434.0,66433.0,0.004]
[1722411946748,0.18978968,66434.0,66433.0,0.154527]
[1722411947360,0.03729077,66434.0,66433.0,0.154527]
[1722411948299,0.03711124,66434.0,66433.0,0.154527]
[1722411949327,0.03711124,66437.0,66433.0,0.154527]
[1722411949532,0.03711124,66436.0,66433.0,0.154527]
[1722411949737,0.03711124,66435.0,66433.0,0.154527]
[1722411949893,0.03711124,66434.0,66433.0,0.154527]
[1722411950322,0.18960339,66434.0,66433.0,0.152527]
[1722411950723,0.18960339,66434.0,66433.0,0.150527]
[1722411950959,0.03711124,66434.0,66433.0,0.150527]
[1722411951160,0.18960055,66434.0,66433.0,0.150527]
[1722411951377,0.18960055,66434.0,66431.0,0.15053]
[1722411951584,0.03728473,66433.0,66432.0,0.150529]
[1722411951718,0.15248874,66434.0,66432.0,0.150529]
[1722411951917,0.18977347,66433.0,66432.0,0.150529]
[1722411952541,0.18976974,66433.0,66432.0,0.150529]
[1722411953591,0.18976974,66433.0,66432.0,0.153529]
[1722411954002,0.18976974,66433.0,66432.0,0.150529]
[1722411955060,0.1898714,66433.0,66432.0,0.151529]
[1722411955260,0.03739398,66433.0,66432.0,0.151529]
[1722411955469,0.18987136,66433.0,66432.0,0.153529]
[1722411955808,0.18987136,66433.0,66432.0,0.151529]
[1722411956211,0.03739398,66433.0,66432.0,0.152529]
[1722411956652,0.03739398,66433.0,66432.0,0.151529]
[1722411957028,0.03739398,66433.0,66432.0,0.152529]
[1722411957228,0.18987136,66433.0,66432.0,0.152529]
[1722411957631,0.03739398,66433.0,66432.0,0.152529]
[1722411958325,0.15247738,66434.0,66432.0,0.152529]
[1722411958464,0.03745097,66433.0,66432.0,0.152529]
[1722411960728,0.03745097,66433.0,66432.0,0.151529]
[1722411962269,0.03745097,66433.0,66432.0,0.152529]
[1722411963619,0.03745097,66433.0,66432.0,0.151529]
[1722411963852,0.03745097,66433.0,66432.0,0.001]
[1722411964206,0.03745097,66433.0,66431.0,0.150531]
[1722411964416,0.03745097,66433.0,66432.0,0.151529]
[1722411964800,0.03745097,66433.0,66432.0,0.150529]
[1722411965204,0.03745097,66433.0,66432.0,0.151529]
[1722411966029,0.03745097,66433.0,66432.0,0.001]
[1722411966232,0.03745097,66433.0,66432.0,0.002]
[1722411966428,0.03745097,66433.0,66432.0,0.453588]
[1722411966657,0.03745097,66433.0,66432.0,0.754647]
[1722411966860,0.13549615,66436.0,66435.0,0.830015]
[1722411967063,0.03793879,66436.0,66435.0,1.140061]
[1722411967307,0.00083,66445.0,66440.0,0.150511]
[1722411967308,0.13549615,66441.0,66440.0,0.150511]
[1722411967514,0.13549615,66443.0,66442.0,0.829435]
[1722411967735,0.00083,66445.0,66444.0,0.451507]
[1722411967942,0.03945515,66445.0,66442.0,0.377914]
[1722411968151,0.00083,66445.0,66444.0,0.150502]
[1722411968549,0.03945515,66445.0,66444.0,0.150502]
[1722411970431,0.17487102,66445.0,66444.0,0.150502]
[1722411971619,0.17480859,66445.0,66444.0,0.150502]
[1722411972291,0.13624587,66445.0,66444.0,0.451507]
[1722411972454,0.13624587,66445.0,66444.0,0.150502]
[1722411972795,0.13624587,66445.0,66444.0,0.451507]
[1722411974373,0.00083,66445.0,66444.0,0.451507]
[1722411975768,0.00083,66445.0,66444.0,0.150502]
[1722411977749,0.13619642,66445.0,66444.0,0.150502]
[1722411977948,0.00083,66445.0,66444.0,0.150502]
[1722411978380,0.00083,66445.0,66444.0,0.451507]
[1722411978587,0.00083,66445.0,66444.0,0.450507]
[1722411978963,0.00083,66445.0,66444.0,0.751512]
[1722411979776,0.13619772,66445.0,66444.0,0.751512]
[1722411979974,0.13619772,66445.0,66444.0,0.834512]
[1722411980174,0.13619772,66445.0,66444.0,1.200817]
[1722411980437,0.00083,66445.0,66444.0,1.200817]
[1722411981392,0.00083,66445.0,66444.0,1.205817]
[1722411981795,0.00083,66445.0,66444.0,1.211817]
[1722411982988,0.00083,66445.0,66444.0,0.905812]
[1722411983196,0.00083,66445.0,66444.0,0.911812]
[1722411983610,0.00083,66445.0,66444.0,0.846512]
[1722411983808,0.00083,66445.0,66444.0,0.763512]
[1722411984309,0.00083,66445.0,66444.0,0.757512]
[1722411984462,0.00083,66445.0,66444.0,0.751512]
[1722411984775,0.00083,66445.0,66444.0,0.820812]
[1722411984985,0.00083,66445.0,66444.0,0.900012]
[1722411985951,0.00083,66445.0,66444.0,0.897012]
[1722411986151,0.00083,66445.0,66444.0,0.894012]
[1722411986353,0.00083,66445.0,66444.0,0.900012]
[1722411987822,0.00083,66445.0,66444.0,0.894012]
[1722411987937,0.00083,66445.0,66444.0,0.897012]
[1722411988572,0.00083,66445.0,66444.0,0.596007]
[1722411988945,0.00083,66445.0,66444.0,0.529707]
[1722411989803,0.00083,66445.0,66444.0,0.0792]
[1722411990012,0.00083,66445.0,66444.0,0.153502]
[1722411990013,0.17528323,66445.0,66444.0,0.153502]
[1722411990218,0.17528323,66445.0,66444.0,0.156502]
[1722411990219,0.03998798,66445.0,66444.0,0.156502]
[1722411990426,0.03998798,66445.0,66444.0,0.153502]
[1722411990627,0.03998798,66445.0,66444.0,0.150502]
[1722411991629,0.03998798,66445.0,66442.0,0.150506]
[1722411991785,0.03998798,66445.0,66443.0,0.150504]
[1722411991786,0.17473666,66444.0,66443.0,0.150504]
[1722411993489,0.17473666,66444.0,66441.0,0.301017]
[1722411993750,0.03942945,66443.0,66442.0,0.150507]
[1722411994336,0.17473666,66443.0,66442.0,0.150507]
[1722411995069,0.00083,66445.0,66443.0,0.150504]
[1722411995278,0.039224,66444.0,66443.0,0.150504]
[1722411996681,0.039224,66444.0,66443.0,0.151504]
[1722411998468,0.00083,66445.0,66444.0,0.150502]
[1722411998672,0.04019125,66445.0,66444.0,0.231002]
[1722412000001,0.04019125,66445.0,66444.0,0.0805]
[1722412000664,0.04019125,66445.0,66429.0,0.0752]
[1722412000665,0.0662,66436.0,66429.0,0.0752]
[1722412000862,0.57755047,66445.0,66426.0,0.000913]
[1722412000863,1.04090716,66431.0,66426.0,0.000913]
[1722412001078,1.23090145,66431.0,66426.0,0.000913]
[1722412001277,1.60634698,66431.0,66426.0,0.000913]
[1722412001563,1.23090145,66431.0,66426.0,0.000913]
[1722412001977,1.23090145,66431.0,66430.0,0.005913]
[1722412002559,1.23090145,66431.0,66430.0,0.000913]
[1722412002723,1.23090145,66431.0,66430.0,0.001913]
[1722412003146,1.23090145,66431.0,66430.0,0.003913]
[1722412003147,0.92983745,66431.0,66430.0,0.003913]
[1722412003345,0.92983745,66431.0,66430.0,0.002913]
[1722412003544,0.85449029,66431.0,66430.0,0.003913]
[1722412003725,0.85449029,66431.0,66430.0,0.004913]
[1722412004165,0.78829029,66431.0,66430.0,0.001913]
[1722412004592,0.34221477,66431.0,66430.0,0.002913]
[1722412004859,0.34221477,66431.0,66430.0,0.601415]
[1722412004860,0.03936125,66431.0,66430.0,0.601415]
[1722412005025,0.13529473,66432.0,66431.0,0.451596]
[1722412005229,0.13529473,66433.0,66432.0,0.451588]
[1722412005495,0.15063304,66440.0,66432.0,0.301059]
[1722412005496,0.13529473,66435.0,66432.0,0.301059]
[1722412005662,0.13529473,66435.0,66434.0,0.150525]
[1722412005874,0.17471356,66435.0,66434.0,0.899725]
[1722412006083,0.13529473,66437.0,66436.0,0.451561]
[1722412006252,0.13529473,66437.0,66436.0,0.752602]
[1722412006656,0.13529473,66437.0,66436.0,0.451561]
[1722412006833,0.17463732,66437.0,66436.0,0.451561]
[1722412007719,0.17463732,66437.0,66436.0,0.752602]
[1722412007920,0.13529473,66440.0,66439.0,0.150514]
[1722412008588,0.13528283,66441.0,66440.0,0.451534]
[1722412009285,0.00083,66444.0,66441.0,0.150509]
[1722412009286,0.13528283,66442.0,66441.0,0.150509]
[1722412009494,0.13528283,66442.0,66441.0,0.451527]
[1722412011276,0.13528283,66442.0,66441.0,0.752545]
[1722412011481,0.00083,66444.0,66443.0,0.451513]
[1722412011855,0.04053499,66444.0,66443.0,0.451513]
[1722412013433,0.04053499,66444.0,66443.0,0.752522]
[1722412013642,0.1361488,66444.0,66443.0,0.752522]
[1722412013848,0.1361488,66444.0,66443.0,0.828722]
[1722412014056,0.00083,66444.0,66443.0,0.828722]
[1722412014288,0.04038607,66444.0,66443.0,0.828722]
[1722412014844,0.04038692,66444.0,66443.0,0.527713]
[1722412018334,0.04024074,66444.0,66443.0,0.527713]
[1722412020221,0.04024074,66444.0,66443.0,0.226704]
[1722412020422,0.04024074,66444.0,66443.0,0.0762]
[1722412020634,0.04024074,66444.0,66443.0,0.226704]
[1722412021584,0.03958191,66444.0,66443.0,0.226704]
[1722412024980,0.00083,66444.0,66443.0,0.226704]
[1722412025252,0.03939584,66444.0,66443.0,0.226704]
[1722412025467,0.03939584,66444.0,66443.0,0.0762]
[1722412027343,0.03939584,66444.0,66443.0,0.226704]
[1722412028212,0.03939584,66444.0,66443.0,0.0762]
[1722412028431,0.03939584,66444.0,66426.0,0.301996]
[1722412028432,0.25285436,66444.0,66436.0,0.079]
[1722412028638,0.150515,66439.0,66436.0,0.079]
[1722412028850,0.03849132,66438.0,66436.0,0.079]
[1722412029058,0.03849132,66437.0,66436.0,0.079]
[1722412029686,0.301037,66437.0,66436.0,0.079]
[1722412029884,0.301037,66437.0,66429.0,0.301069]
[1722412029885,0.150523,66435.0,66432.0,0.0765]
[1722412030089,0.301042,66436.0,66432.0,0.0765]
[1722412030090,0.28590289,66434.0,66432.0,0.0765]
[1722412030291,0.13537789,66434.0,66432.0,0.0765]
[1722412030928,0.28590389,66434.0,66432.0,0.0765]
[1722412031147,0.13537789,66434.0,66432.0,0.0765]
[1722412031365,0.13537789,66433.0,66432.0,0.0765]
[1722412032393,0.17358656,66433.0,66432.0,0.0935]
[1722412032570,0.17358656,66433.0,66432.0,0.0855]
[1722412032984,0.17358656,66433.0,66432.0,0.0765]
[1722412034823,0.03817178,66433.0,66432.0,0.0765]
[1722412035031,0.17356372,66433.0,66432.0,0.0765]
[1722412036106,0.03817178,66433.0,66432.0,0.0765]
[1722412036713,0.03817178,66434.0,66432.0,0.0765]
[1722412036918,0.03817178,66433.0,66432.0,0.0765]
[1722412037327,0.03817178,66433.0,66432.0,0.227028]
[1722412037549,0.15231593,66437.0,66436.0,0.15052]
[1722412037759,0.19078928,66437.0,66436.0,0.29452]
[1722412037961,0.03847335,66437.0,66436.0,0.595561]
[1722412038182,0.15230652,66441.0,66437.0,0.301037]
[1722412038466,0.03846652,66440.0,66439.0,0.150514]
[1722412038694,0.03928999,66440.0,66439.0,0.446428]
[1722412038913,0.03928995,66442.0,66439.0,0.446428]
[1722412039125,0.15313652,66444.0,66441.0,0.150509]
[1722412039327,0.03928938,66443.0,66441.0,0.150509]
[1722412039965,0.03928938,66443.0,66439.0,0.1454]
[1722412040267,0.1915959,66443.0,66440.0,0.150511]
[1722412040440,0.03928938,66442.0,66440.0,0.150511]
[1722412040639,0.11463654,66442.0,66440.0,0.150511]
[1722412040879,0.03928938,66441.0,66440.0,0.150511]
[1722412041292,0.03928938,66441.0,66439.0,0.1454]
[1722412041549,0.03914937,66440.0,66439.0,0.1454]
[1722412042369,0.03914937,66441.0,66439.0,0.1454]
[1722412042752,0.03914937,66441.0,66439.0,0.295913]
[1722412042903,0.03914937,66441.0,66439.0,0.297913]
[1722412043103,0.03914937,66441.0,66440.0,0.150511]
[1722412043312,0.03914937,66441.0,66439.0,0.1474]
[1722412043534,0.03914937,66441.0,66439.0,0.297913]
[1722412043754,0.03914937,66441.0,66439.0,0.295913]
[1722412044812,0.03932541,66440.0,66439.0,0.295913]
[1722412045013,0.03932541,66441.0,66439.0,0.295913]
[1722412045248,0.03932541,66440.0,66439.0,0.295913]
[1722412045669,0.03932541,66441.0,66439.0,0.295913]
[1722412047600,0.15232296,66440.0,66439.0,0.295913]
[1722412047867,0.19173967,66440.0,66439.0,0.295913]
[1722412048097,0.19174027,66440.0,66439.0,0.295914]
[1722412048333,0.19174067,66440.0,66439.0,0.295914]
[1722412048587,0.03937542,66440.0,66439.0,0.295914]
[1722412048814,0.03937542,66442.0,66439.0,0.1454]
[1722412049069,0.03937542,66441.0,66439.0,0.295913]
[1722412049278,0.03937542,66440.0,66439.0,0.295913]
[1722412050003,0.03937542,66442.0,66439.0,0.295913]
[1722412050204,0.03937542,66441.0,66439.0,0.295913]
[1722412050409,0.03937542,66440.0,66439.0,0.295913]
[1722412050715,0.03937542,66442.0,66439.0,0.295913]
[1722412051604,0.03937507,66441.0,66439.0,0.295913]
[1722412051837,0.03937507,66440.0,66439.0,0.295913]
[1722412052081,0.03937507,66442.0,66439.0,0.295913]
[1722412055137,0.07534716,66443.0,66439.0,0.295913]
[1722412055138,0.03928378,66441.0,66439.0,0.295913]
[1722412055339,0.03928378,66440.0,66439.0,0.295913]
[1722412055766,0.15248931,66443.0,66437.0,0.0863]
[1722412055971,0.1918471,66442.0,66441.0,0.451527]
[1722412056181,0.03935779,66442.0,66441.0,0.896345]
[1722412056601,0.15332541,66444.0,66442.0,0.451521]
[1722412056602,0.03935779,66443.0,66442.0,0.451521]
[1722412056808,0.03923583,66443.0,66442.0,0.451521]
[1722412056984,0.03923583,66443.0,66442.0,0.896335]
[1722412058228,0.03923583,66443.0,66442.0,0.595321]
[1722412058837,0.03923583,66443.0,66442.0,0.897335]
[1722412060853,0.19172878,66443.0,66442.0,0.897335]
[1722412061283,0.03923583,66443.0,66442.0,0.898335]
[1722412061491,0.00083,66444.0,66443.0,0.897322]
[1722412061730,0.04029755,66444.0,66443.0,0.897322]
[1722412062142,0.04029755,66444.0,66443.0,0.596313]
[1722412062143,0.19278386,66444.0,66443.0,0.596313]
[1722412062364,0.04029755,66444.0,66443.0,0.596313]
[1722412064926,0.03983527,66444.0,66443.0,0.596313]
[1722412065978,0.03983527,66444.0,66443.0,0.295304]
[1722412066597,0.03983527,66444.0,66443.0,0.1448]
[1722412067163,0.03983527,66444.0,66443.0,0.295304]
[1722412068022,0.03983527,66444.0,66443.0,0.0795]
[1722412068236,0.00083,66444.0,66443.0,0.0795]
[1722412068401,0.03992192,66444.0,66443.0,0.0795]
[1722412070611,0.03992192,66444.0,66439.0,0.0809]
[1722412070815,0.15249615,66440.0,66439.0,0.0809]
[1722412071026,0.19158807,66440.0,66439.0,0.231414]
[1722412071235,0.19158807,66440.0,66439.0,0.0809]
[1722412071434,0.19152938,66440.0,66439.0,0.0809]
[1722412072266,0.19152938,66440.0,66439.0,0.233414]
[1722412073728,0.19152938,66440.0,66439.0,0.235414]
[1722412074638,0.19152938,66440.0,66439.0,0.233414]
[1722412074893,0.150505,66443.0,66439.0,0.231414]
[1722412075109,0.00083,66444.0,66439.0,0.231414]
[1722412075110,0.15251198,66440.0,66439.0,0.231414]
[1722412075325,0.19175696,66440.0,66439.0,0.532442]
[1722412075538,0.19175696,66440.0,66439.0,0.291614]
[1722412075980,0.19175696,66440.0,66439.0,0.1411]
[1722412076367,0.19175696,66440.0,66439.0,0.291614]
[1722412077424,0.03924498,66440.0,66439.0,0.291614]
[1722412077629,0.03926884,66440.0,66439.0,0.291614]
[1722412078472,0.03926884,66443.0,66439.0,0.291614]
[1722412078684,0.151332,66444.0,66439.0,0.291614]
[1722412078685,0.03926884,66442.0,66439.0,0.291614]
[1722412078889,0.03926884,66441.0,66440.0,0.150511]
[1722412080184,0.03926884,66443.0,66440.0,0.150511]
[1722412080394,0.03926884,66442.0,66440.0,0.150511]
[1722412080568,0.03926884,66441.0,66440.0,0.150511]
[1722412081559,0.03944481,66441.0,66440.0,0.150511]
[1722412081763,0.151332,66444.0,66440.0,0.150511]
[1722412081764,0.03944481,66443.0,66440.0,0.150511]
[1722412081915,0.03944481,66442.0,66440.0,0.150511]
[1722412082120,0.03944481,66441.0,66440.0,0.150511]